Cogmind - Beta 13 @@@ ROGUE MODE // 2024.05.31 @ 23:17:46 Player: saltine Result: Destroyed by S-10 Pest with Light Assault Rifle Performance ------------- Evolutions (1) 500 Regions Visited (5) 1000 Robots Destroyed (44) 220 Value Destroyed (1203) 1203 Prototype IDs (0) 0 Alien Tech Used (0) 0 Bonus (38) 38 TOTAL SCORE: 2961 Bonus ------- High Alert Combat Kills 38 Cogmind --------- Core Integrity 0/400 Matter 221/300 Energy 160/160 System Corruption 15% Temperature Cool (4) Movement Treading (160) Location -8/Mines Parts ------- > --- POWER (1) -------- Light Nuclear Core > --- PROPULSION (3) --- Light Treads Light Treads > --- UTILITY (3) ------ (None) > --- WEAPON (2) ------- Heavy Assault Rifle (fused) Autogun > --- INVENTORY (5) ---- Ion Engine Ion Engine Heavy EM Pulse Gun Gauss Rifle Peak State ------------ > --- POWER ------------ Ion Engine > --- PROPULSION ------- Light Treads Light Treads Light Treads > --- UTILITY ---------- Light Armor Plating Light Armor Plating Shield Generator > --- WEAPON ----------- Heavy Assault Rifle Autogun > --- INVENTORY -------- Ion Engine Ion Engine Heavy EM Pulse Gun Autogun [Rating: 12] Favorites ----------- Power Ion Engine Engine Ion Engine Power Core Light Nuclear Core Propulsion Light Treads Treads Light Treads Utility Small Storage Unit Device Shield Generator Storage Small Storage Unit Processor Transport Network Coupler Protection Light Armor Plating Weapon Light Assault Rifle Energy Gun Small Laser Ballistic Gun Light Assault Rifle Launcher Grenade Launcher Build | -11 -10 -9 -9 -9 -8 ------- Run | Yrd Mat Mat Min Exi Min Slots Evolved 2 | . . 2 . . . Power . | . . . . . . Propulsion 1 | . . 1 . . . Utility 1 | . . 1 . . . Weapon . | . . . . . . Parts Attached 30 | 6 2 17 . . 5 Power 5 | 1 1 1 . . 2 Engine 3 | 1 . 1 . . 1 Core 2 | . 1 . . . 1 Reactor . | . . . . . . Propulsion 7 | 2 . 3 . . 2 Treads 7 | 2 . 3 . . 2 Leg . | . . . . . . Wheel . | . . . . . . Hover . | . . . . . . Flight . | . . . . . . Utility 6 | 1 1 4 . . . Device 1 | . . 1 . . . Storage 1 | 1 . . . . . Processor 1 | . 1 . . . . Hackware . | . . . . . . Protection 3 | . . 3 . . . Artifact . | . . . . . . Weapon 12 | 2 . 9 . . 1 Energy Gun 5 | 1 . 4 . . . Energy Cannon . | . . . . . . Ballistic Gun 6 | 1 . 4 . . 1 Ballistic Cannon . | . . . . . . Launcher 1 | . . 1 . . . Special Weapon . | . . . . . . Impact Weapon . | . . . . . . Slashing Weapon . | . . . . . . Piercing Weapon . | . . . . . . Special Melee Weapon . | . . . . . . Unidentified Prototypes . | . . . . . . Parts Lost 19 | . . 13 . . 6 Power 2 | . . 1 . . 1 Propulsion 3 | . . 2 . . 1 Utility 6 | . . 3 . . 3 Weapon 8 | . . 7 . . 1 Highest Loss Streak 10 | . . 10 . . 6 To Critical Strikes . | . . . . . . Average Slot Usage (%) 80 | . 86 60 100 100 79 Engine 8 | . 10 2 11 11 7 Core 3 | . 3 4 . . 3 Treads 26 | . 28 18 33 33 27 Device 2 | . . 2 11 11 6 Storage 9 | . 14 6 . . . Processor 1 | . 1 4 . . . Protection 4 | . . 5 22 22 12 Energy Gun 8 | . 14 3 . . . Ballistic Gun 15 | . 14 12 22 22 21 Naked Turns . | . . . . . . Heaviest Build 20 | 12 12 20 19 19 19 Greatest Support 60 | 40 40 60 60 60 60 Greatest Overweight (x) 6 | 3 . 6 . . . Average Overweight (x) . | . . . . . . Largest Inventory Capacity 8 | 8 8 8 5 5 5 Average Capacity 7 | 7 8 6 5 5 5 Most Carried 5 | 2 5 5 5 5 5 Average Carried 3 | 1 2 4 5 5 4 Final Capacity 8 | 8 8 5 5 5 5 Final Carried 5 | 2 5 5 5 5 4 Class Distribution -------------------- 70% | Mutant 29% | Scavenger-Mutant Dominant Class ---------------- Mutant | -10/Materials Mutant | -9/Materials Scavenger-Mutant | -9/Mines Scavenger-Mutant | -9/Exiles Scavenger-Mutant | -8/Mines Resources | -11 -10 -9 -9 -9 -8 ----------- Run | Yrd Mat Mat Min Exi Min Matter Collected 945 | 240 85 425 61 . 134 Remotely . | . . . . . . Salvage Created 1467 | . 522 686 56 . 203 Parts 95 | . 34 42 9 . 10 Haulers Intercepted 2 | . 2 . . . . Recyclers Shooed 1 | . 1 . . . . Parts Field Recycled . | . . . . . . Retrieved Matter . | . . . . . . Parts Self-Destructed . | . . . . . . Prevented . | . . . . . . Kills | -11 -10 -9 -9 -9 -8 ------- Run | Yrd Mat Mat Min Exi Min Combat Hostiles Destroyed 40 | . 13 17 4 . 6 Guns 35 | . 13 12 4 . 6 AOE 5 | . . 5 . . . Classes Destroyed 8 | . 3 4 . . 1 Builder 1 | . . 1 . . . Hauler 2 | . 2 . . . . Recycler 1 | . . 1 . . . Swarmer 14 | . 3 4 4 . 3 Grunt 18 | . 10 6 . . 2 Brawler 1 | . . 1 . . . Sentry 6 | . . 6 . . . Hunter 1 | . . . . . 1 Best Kill Streak 7 | . 3 7 4 . 4 Combat Bots Only 5 | . 3 5 4 . 4 Max Kills in Single Turn 2 | . 1 2 1 . 1 Gunslinging 1 | . . 1 . . . Exploded 1 | . . 1 . . . Melee . | . . . . . . Uniques/NPCs Destroyed . | . . . . . . Combat | -11 -10 -9 -9 -9 -8 -------- Run | Yrd Mat Mat Min Exi Min Hostile Shots Fired 275 | . 58 135 6 . 76 Missed 83 | . 18 42 2 . 21 Damage Taken 2436 | . 442 1303 21 . 670 Core 486 | . 80 333 . . 73 Absorbed by Shields 128 | . . 33 8 . 87 Core Remaining (%) 84 | 100 68 . . . . Volleys Fired 149 | . 49 70 5 . 25 Largest 2 | . 2 2 2 . 2 Hottest 60 | . 60 60 46 . 46 Shots Fired 248 | . 96 93 10 . 49 Gun 230 | . 96 75 10 . 49 Cannon . | . . . . . . Launcher 18 | . . 18 . . . Special . | . . . . . . Kinetic 162 | . 49 54 10 . 49 Thermal 61 | . 47 14 . . . Explosive 18 | . . 18 . . . Electromagnetic 7 | . . 7 . . . Robot Hit Streak 14 | . 10 14 6 . 6 Robot Miss Streak 4 | . 4 3 1 . 4 Penetration Max . | . . . . . . Secondary Targets 8 | . 3 3 2 . . Max Gunslinging Chain 1 | . 1 1 1 . . Shots Hit Robots 148 | . 55 61 7 . 25 Core Hits 82 | . 33 35 4 . 10 Critical Kills 1 | . 1 . . . . Critical Parts Destroyed . | . . . . . . Critical Strikes 1 | . 1 . . . . Destroy 1 | . 1 . . . . Melee Attacks . | . . . . . . Impact . | . . . . . . Slashing . | . . . . . . Piercing . | . . . . . . Sneak Attacks . | . . . . . . Combat Hostiles . | . . . . . . Follow-up Attacks . | . . . . . . Damage Inflicted 2175 | . 569 1128 101 . 377 Guns 1670 | . 561 634 98 . 377 Cannons . | . . . . . . Explosions 488 | . . 488 . . . Melee . | . . . . . . Ramming 17 | . 8 6 3 . . Kinetic 1174 | . 222 477 98 . 377 Thermal 434 | . 339 95 . . . Explosive 488 | . . 488 . . . Electromagnetic 62 | . . 62 . . . Impact . | . . . . . . Slashing . | . . . . . . Piercing . | . . . . . . Highest Corruption 15 | . . 7 7 7 15 Average Corruption 8 | . . 7 7 7 10 Corruption Purged . | . . . . . . Corruption Blocked . | . . . . . . Effects 24 | . . 10 1 1 12 Message Errors 4 | . . 2 . . 2 Matter Fused 4 | . . 1 . . 3 Heat Flow Errors 2 | . . 1 . . 1 Energy Discharges 1 | . . 1 . . . Parts Rejected 3 | . . 1 . . 2 Parts Fused 1 | . . . . . 1 Data Loss (minor) 2 | . . 1 . 1 . Data Loss (major) 3 | . . . 1 . 2 Misfires 2 | . . 2 . . . Alerts 1 | . . 1 . . . Weapon Failures 1 | . . . . . 1 Overload Shots . | . . . . . . Overflow Damage 4 | . . 4 . . . Projectiles . | . . . . . . Explosions 4 | . . 4 . . . Melee . | . . . . . . Knockbacks . | . . . . . . Impact . | . . . . . . Kinetic . | . . . . . . Secondary . | . . . . . . Self-Inflicted Damage 107 | . . 107 . . . Shots 4 | . . 4 . . . Rammed 5 | . 1 2 2 . . Targets Rammed 5 | . 1 2 2 . . Kicked . | . . . . . . Crushed . | . . . . . . Highest Temperature 123 | . 112 123 12 . 86 Average Temperature 35 | . 40 40 9 . 17 Received Heat Transfer 766 | . 204 430 . . 132 Siege Activations . | . . . . . . Robots Corrupted . | . . . . . . Combat Hostiles . | . . . . . . Parts Fried . | . . . . . . Impact Corruptions . | . . . . . . Robots Melted . | . . . . . . Combat Hostiles . | . . . . . . Parts Melted 1 | . . 1 . . . Heat Transferred 1000 | . 775 225 . . . Parts Sabotaged . | . . . . . . Parts Stolen . | . . . . . . Parts Stripped . | . . . . . . Power Chain Reactions . | . . . . . . Alert | -11 -10 -9 -9 -9 -8 ------- Run | Yrd Mat Mat Min Exi Min Peak Influence 464 | . 182 464 218 . 70 Initial 128 | . . 29 128 . . Average 113 | . 62 277 188 . 41 Maximum Alert Level 2 | . . 2 1 . . Low Security (%) 79 | 100 100 25 35 . 100 Level 1 14 | . . 47 64 . . Level 2 6 | . . 27 . . . Level 3 . | . . . . . . Level 4 . | . . . . . . Level 5 . | . . . . . . High Security . | . . . . . . Max Security . | . . . . . . Squads Dispatched 6 | . 4 2 . . . Investigation 3 | . 2 1 . . . Extermination . | . . . . . . Reinforcement 3 | . 2 1 . . . Assault . | . . . . . . Garrison . | . . . . . . Intercept . | . . . . . . Searches Triggered . | . . . . . . Construction Impeded . | . . . . . . Haulers Reinforced . | . . . . . . Active Scanning Responses . | . . . . . . Cargo Convoy Interrupts . | . . . . . . Stealth | -11 -10 -9 -9 -9 -8 --------- Run | Yrd Mat Mat Min Exi Min Distress Signals 3 | . 3 . . . . Communications Jammed . | . . . . . . Distress Signals . | . . . . . . Times Spotted 60 | . 25 20 4 . 11 Peak Tracking Total 8 | . 5 8 4 . 4 Tactical Retreats . | . . . . . . Traps | -11 -10 -9 -9 -9 -8 ------- Run | Yrd Mat Mat Min Exi Min Traps Triggered 3 | . 2 1 . . . Indirectly . | . . . . . . Trap Hack Attempts . | . . . . . . Triggered . | . . . . . . Disarmed . | . . . . . . Reprogrammed . | . . . . . . Reused . | . . . . . . Traps Extracted . | . . . . . . Installed . | . . . . . . Triggered . | . . . . . . Machines | -11 -10 -9 -9 -9 -8 ---------- Run | Yrd Mat Mat Min Exi Min Machines Disabled 1 | . . 1 . . . Max in Single Turn 1 | . . 1 . . . Machines Repaired . | . . . . . . Machines Dismantled . | . . . . . . Machines Sabotaged . | . . . . . . Overloaded Fab Kills . | . . . . . . Hacking | -11 -10 -9 -9 -9 -8 --------- Run | Yrd Mat Mat Min Exi Min Machines Accessed 9 | . 7 1 1 . . Terminals 9 | . 7 1 1 . . Fabricators . | . . . . . . Repair Stations . | . . . . . . Recycling Units . | . . . . . . Scanalyzers . | . . . . . . Garrison Access . | . . . . . . Total Hacks 24 | . 19 4 1 . . Successful 11 | . 8 3 . . . Failed 13 | . 11 1 1 . . Catastrophic 4 | . 3 . 1 . . Database Lockouts . | . . . . . . Manual 16 | . 13 2 1 . . Terminals 24 | . 19 4 1 . . Fabricators . | . . . . . . Repair Stations . | . . . . . . Recycling Units . | . . . . . . Scanalyzers . | . . . . . . Garrison Access . | . . . . . . Terminal Hacks 8 | . 6 2 . . . Record 1 | . 1 . . . . Level Access Points 1 | . 1 . . . . Branch Access Points 1 | . 1 . . . . Emergency Access Points 1 | . . 1 . . . Terminal Index 1 | . 1 . . . . Recall Reinforcements 1 | . 1 . . . . Hauler Manifests 1 | . . 1 . . . Registered Components 1 | . 1 . . . . Fabricator Hacks . | . . . . . . Repair Station Hacks . | . . . . . . Recycling Unit Hacks . | . . . . . . Scanalyzer . | . . . . . . Garrison Access Hacks . | . . . . . . Unauthorized Hacks 3 | . 2 1 . . . Terminals 3 | . 2 1 . . . Botnet 3 | . 2 1 . . . Fabricators . | . . . . . . Repair Stations . | . . . . . . Recycling Units . | . . . . . . Scanalyzers . | . . . . . . Garrison Access . | . . . . . . Data Cores Recovered . | . . . . . . Used . | . . . . . . Hacking Detections 8 | . 7 . 1 . . Full Trace Events . | . . . . . . Feedback Events . | . . . . . . Feedback Blocked . | . . . . . . Robot Schematics Acquired . | . . . . . . Robots Built . | . . . . . . Authchips . | . . . . . . Time . | . . . . . . Total Robot Build Rating . | . . . . . . Part Schematics Acquired . | . . . . . . Parts Built . | . . . . . . Authchips . | . . . . . . Time . | . . . . . . Total Part Build Rating . | . . . . . . Parts Repaired . | . . . . . . Time . | . . . . . . Parts Recycled . | . . . . . . Recycled Matter . | . . . . . . Retrieved Matter . | . . . . . . Retrieved Components . | . . . . . . Parts Scanalyzed . | . . . . . . Part Schematics Acquired . | . . . . . . Parts Damaged . | . . . . . . Bothacking | -11 -10 -9 -9 -9 -8 ------------ Run | Yrd Mat Mat Min Exi Min Used RIF Installer . | . . . . . . Robots Hacked . | . . . . . . Non-combat . | . . . . . . Combat . | . . . . . . Robot Hacks Applied . | . . . . . . Relay Couplers Released . | . . . . . . Fabnet Peak Effective % . | . . . . . . Robots Rewired . | . . . . . . Allies Hacked . | . . . . . . Hacks Repelled . | . . . . . . Allies | -11 -10 -9 -9 -9 -8 -------- Run | Yrd Mat Mat Min Exi Min Total Allies . | . . . . . . Largest Group . | . . . . . . Highest-Rated Group . | . . . . . . Highest-Rated Ally . | . . . . . . Total Orders . | . . . . . . Ally Attacks . | . . . . . . Total Damage . | . . . . . . Kills . | . . . . . . Allies Corrupted . | . . . . . . Allies Melted . | . . . . . . Intel | -11 -10 -9 -9 -9 -8 ------- Run | Yrd Mat Mat Min Exi Min Robot Analysis Total . | . . . . . . Derelict Logs Recovered . | . . . . . . Drone Launches . | . . . . . . Drone Recoveries . | . . . . . . Exploration | -11 -10 -9 -9 -9 -8 ------------- Run | Yrd Mat Mat Min Exi Min Turns Passed 2265 | 62 1236 486 146 44 291 Spaces Moved 1146 | 35 684 184 81 28 134 Core 37 | 9 . 28 . . . Treads 1109 | 26 684 156 81 28 134 Legs . | . . . . . . Wheels . | . . . . . . Hover . | . . . . . . Flight . | . . . . . . Fastest Speed 50 | 50 160 50 160 160 160 Average Speed 160 | 148 160 165 160 160 160 Slowest Speed 350 | 200 160 350 160 160 160 Overloaded Moves . | . . . . . . Propulsion Burnouts . | . . . . . . Robots Hopped . | . . . . . . Cave-ins Triggered 1 | . . 1 . . . Exploration Rate (%) 29 | 4 88 26 18 8 31 Regions Visited 5 Branch Regions 3 Pre-discovered Areas . | . . . . . . Known Exits Taken 1 | . 1 . . . . Unknown Exits Taken 4 | 1 . 1 1 1 . Scrap Searched . | . . . . . . Spaces Dug . | . . . . . . Terrain Destroyed 81 | . . 81 . . . Melee . | . . . . . . Projectile . | . . . . . . AOE 81 | . . 81 . . . Terrain Rammed . | . . . . . . Walls Destroyed . | . . . . . . Machines Disabled . | . . . . . . Actions | -11 -10 -9 -9 -9 -8 --------- Run | Yrd Mat Mat Min Exi Min Total 1334 | 42 738 275 87 27 165 Wait 1 | . 1 . . . . Move 1141 | 34 683 183 80 27 134 Hop . | . . . . . . Pick Up 8 | 2 2 3 . . 1 Fast Attach 21 | 6 1 13 . . 1 Attach 6 | . . 3 . . 3 Detach . | . . . . . . Swap 3 | . 1 1 . . 1 Drop . | . . . . . . Fire 149 | . 49 70 5 . 25 Melee . | . . . . . . Ram . | . . . . . . Kick . | . . . . . . Crush 5 | . 1 2 2 . . Escape Stasis . | . . . . . . Rewire . | . . . . . . Trap . | . . . . . . Miscellaneous . | . . . . . . Route ------- -11/Scrapyard -10/Materials (discovered 4 exits: *Mat x3 / *Min) -9/Materials -9/Mines -9/Exiles -8/Mines History --------- Turn | Location | Event 26 | -11/Scrapyard | Discovered new exit (range 15) 63 | -11/Scrapyard | Entered Materials 277 | -10/Materials | Identified exit to Materials 277 | -10/Materials | Identified exit to Mines 311 | -10/Materials | Build established: Mutant 1299 | -10/Materials | Entered another Materials area 1299 | -9/Materials | Evolved 2 slots: Propulsion x1, Utility x1 1462 | -9/Materials | Lost 3 parts (2n1w) 1482 | -9/Materials | Crushed by falling debris 1559 | -9/Materials | Core integrity fell below 50% 1585 | -9/Materials | Core integrity fell below 20% 1601 | -9/Materials | Lost 10 parts (1p3u6w) 1741 | -9/Materials | Discovered new exit (range 11) 1785 | -9/Materials | Entered Mines 1892 | -9/Mines | Build established: Scavenger-Mutant 1919 | -9/Mines | Deemed a non-threat by the Exiles lab entrance 1921 | -9/Mines | Discovered new exit (range 5) 1931 | -9/Mines | Entered Exiles 1952 | -9/Exiles | Discovered new exit (range 15) 1975 | -9/Exiles | Entered Mines 2136 | -8/Mines | System corruption reached 10% 2196 | -8/Mines | Lost 6 parts (1p1n3u1w) 2266 | -8/Mines | Destroyed by S-10 Pest with Light Assault Rifle Last Messages --------------- 02155_ Lgt. Armor Plating destroyed. 02156_ Penetrated by Slug. 02157_ C&/I:UK4WBQAH#HB/E:6FDDTNMBOVE: 02158_ G-47 Trooper destroyed. 02159_ Penetrated by Slug. 02159_ Autogun destroyed. 02163_ K-01 Serf collects debris. 02165_ Ion Engine destroyed. 02168_ K-01 Serf collects debris. 02168_ H-55 Commando destroyed. 02171_ K-01 Serf collects debris. 02175_ Acquired 14 matter. 02179_ K-01 Serf collects debris. 02198_ System corrupted: Matter fused (-5). 02200_ K-01 Serf collects debris. 02209_ Acquired Gauss Rifle. 02216_ System corrupted: Matter fused (-9). 02221_ K-01 Serf collects debris. 02238_ Acquired 49 matter. 02242_ EAR&OBOWRHRN:ZZHR9G LPUVI9LS/V Map ----- +----------------------------------------------------+ | #????????????????????????????? | | ????????????????????????????? | | ????????????????????????????? | | #??????????????????????????????? | | #???????????????????????????????? | | ##??????????????????????????????? | | # #??????????????????????????????? | | ???? ##?????????????????????????????? | | ????# #??????????????????# ?????????? | | ????# #?????????????????# ?????????? | | ????# ##???????????????# ?????????? | | #??## #??????????????? ?????????? | | #### #??????????????# ??????????? | | #?????????????? ??????????? | | ##????????????? ??????????? | | ## #####????????? ??????????? | | ?## % ##???????? #??????????? | | ??## %########?# #??????????? | | ???## * #?# ###????????? | | ????## ## ! #?# ?????????? | | ?????###### ####### #?# #??????????? | | ??????????####?????# ### ##?????????? | | ???????????????????# #?????????? | | ???????????????????# #?????????? | | ???????????????????##### #?????????? | | ???????????????????????# @ #?????????? | | ???????????????????????# #?????????? | | ???????????????????????#s #????????? | | ??????????????????????# s""" #???????? | | ????????????????????? """ #??????? | | ???????????????????? """ #??????? | | ??????????????????? #### #??????? | | ?????????????????? ????## #??????? | | ????????????????? ??????# #??????? | | ???????????????# ???????## ?##??????? | | ???????????????#??????????#???????????? | | ??????????????????????????????????????? | | ??????????????????????????????????????? | | ??????????????????????????????????????? | | ??????????????????????????????????????? | | ??????????????????????????????????????? | | ??????????????????????????????????????? | | ??????????????????????????????????????? | | ??????????????????????????????????????? | | ??????????????????????????????????????? | | ??????????????????????????????????????? | | ??????????????????????????????????????? | | ??????????????????????????????????????? | | ??????????????????????????????????????? | | ??????????????????????????????????????? | +----------------------------------------------------+ Best States ------------- Heat Dissipation 28 Energy Generation 14 Energy Capacity 250 Matter Stores 300 Matter Capacity 300 Sight Range 16 Terrain Scan Density 10 Armor Coverage 300 Evasion (%) 40 Recoil Reduction 3 Item Schematics ----------------- None Robot Schematics ------------------ None Fabricated ------------ Nothing Alien Tech Used ----------------- None Achievements -------------- None Challenges ------------ None Game ------ Seed CatalystBottomlessPurifier Manual? 0 Play Time 00:19:56 Cumulative 27.1 hours Start 2024.05.31 @ 17:00:01 End 2024.05.31 @ 23:17:46 Sessions 1 Manual Loads 0 Difficulty Rogue Special Mode None Game No. 39 Rogue 39 Adventurer 0 Explorer 0 Win Type - Total 1 Types 1/0/0/0/0/0/0/0/0 Lore% 22 Gallery% 32 Achievement% 21 Wizard Run 0 Options --------- Layout 1 ASCII 0 Keyboard 0 Movement Arrows Keybinds 0 Fullscreen 1 Font 24/Smallcaps Map View 50x35 Zoom Use 0% Tactical HUD 1 Map Filters NONE Filters NONE Steam 1 RUN: 25cbc4e7-c7d7-4ff5-a225-03b451ea1416